fUSD/lending_fUSD_20250519
["ID","MTS","AMOUNT","RATE_DAILY","PERIOD"]
[361572755,1747619453496,-585.42,0.00013808,2]
[361572756,1747619453509,-540.29,0.00013808,2]
[361572757,1747619453518,-400.0,0.00013808,2]
[361572758,1747619453528,-400.0,0.00013808,2]
[361572759,1747619453537,-400.0,0.00013808,2]
[361572760,1747619453547,-671.71,0.00013808,2]
[361572761,1747619453556,-576.82,0.00013808,2]
[361572762,1747619453566,-400.0,0.00013808,2]
[361572763,1747619453575,-400.0,0.00013808,2]
[361572764,1747619453584,-400.0,0.00013808,2]
[361572765,1747619453593,-400.0,0.00013808,2]
[361572766,1747619453603,-410.26,0.00013808,2]
[361572767,1747619453612,-402.95660228,0.00013808,2]
[361572768,1747619453622,-400.0,0.00013808,2]
[361572769,1747619453631,-985.72,0.00013808,2]
[361572770,1747619453641,-503.08,0.00013808,2]
[361572771,1747619453650,-401.93744192,0.00013808,2]
[361572772,1747619453660,-552.44,0.00013808,2]
[361572773,1747619453670,-400.0,0.00013808,2]
[361572774,1747619453679,-400.0,0.00013808,2]
[361572775,1747619453689,-1449.11,0.00013808,2]
[361572776,1747619453698,-400.0,0.00013808,2]
[361572777,1747619453708,-409.42523759,0.00013808,2]
[361572778,1747619453717,-401.68157113,0.00013808,2]
[361572779,1747619453728,-1065.86,0.00013808,2]
[361572780,1747619453737,-999.51,0.00013808,2]
[361572781,1747619453748,-400.0,0.00013808,2]
[361572782,1747619453769,-406.15099979,0.00013808,2]
[361572783,1747619453778,-400.0,0.00013808,2]
[361572784,1747619453789,-2200.99,0.00013808,2]
[361572785,1747619453798,-400.0,0.00013808,2]
[361572786,1747619453812,-400.0,0.00013808,2]
[361572787,1747619453822,-505.11,0.00013808,2]
[361572788,1747619453831,-400.0,0.00013808,2]
[361572789,1747619453841,-400.0,0.00013808,2]
[361572790,1747619453851,-224.79724101,0.00013808,2]
[361572791,1747619453861,-400.0,0.00013808,2]
[361572792,1747619453870,-400.0,0.00013808,2]
[361572793,1747619453880,-498.13,0.00013808,2]
[361572794,1747619453890,-426.34,0.00013808,2]
[361572795,1747619453899,-955.96,0.00013808,2]
[361572796,1747619453909,-400.0,0.00013808,2]
[361572797,1747619453918,-553.07,0.00013808,2]
[361572798,1747619453928,-622.67,0.00013808,2]
[361572799,1747619453937,-151.0,0.00013808,2]
[361572800,1747619453947,-151.0,0.00013808,2]
[361572801,1747619453956,-151.865346,0.00013808,2]
[361572802,1747619453965,-639.52,0.00013808,2]
[361572803,1747619453975,-553.57,0.00013808,2]
[361572804,1747619453984,-400.0,0.00013808,2]
[361572805,1747619453994,-400.0,0.00013808,2]
[361572806,1747619454005,-151.0,0.00013808,2]
[361572807,1747619454014,-400.0,0.00013808,2]
[361572808,1747619454024,-527.64,0.00013808,2]
[361572809,1747619454034,-863.16,0.00013808,2]
[361572810,1747619454043,-400.0,0.00013808,2]
[361572811,1747619454052,-411.25,0.00013808,2]
[361572812,1747619454061,-400.0,0.00013808,2]
[361572813,1747619454071,-757.58,0.00013808,2]
[361572814,1747619454080,-400.0,0.00013808,2]
[361572815,1747619454091,-400.0,0.00013808,2]
[361572816,1747619454100,-400.0,0.00013808,2]
[361572817,1747619454109,-678.02,0.00013808,2]
[361572818,1747619454119,-1127.31,0.00013808,2]
[361572819,1747619454129,-907.12,0.00013808,2]
[361572820,1747619454139,-1413.62,0.00013808,2]
[361572821,1747619454148,-562.12,0.00013808,2]
[361572822,1747619454157,-400.0,0.00013808,2]
[361572823,1747619454167,-400.0,0.00013808,2]
[361572824,1747619454176,-400.0,0.00013808,2]
[361572825,1747619454185,-400.0,0.00013808,2]
[361572826,1747619454195,-400.0,0.00013808,2]
[361572827,1747619454205,-435.1,0.00013808,2]
[361572828,1747619454214,-404.72,0.00013808,2]
[361572829,1747619454225,-222.15237005,0.00013808,2]
[361572830,1747619454235,-400.0,0.00013808,2]
[361572831,1747619454244,-937.97,0.00013808,2]
[361572832,1747619454256,-151.0,0.00013808,2]
[361572833,1747619454265,-400.0,0.00013808,2]
[361572834,1747619454274,-151.0,0.00013808,2]
[361572835,1747619454284,-754.19,0.00013808,2]
[361572836,1747619454294,-400.0,0.00013808,2]
[361572837,1747619454303,-400.0,0.00013808,2]
[361572838,1747619454313,-400.0,0.00013808,2]
[361572839,1747619454323,-400.0,0.00013808,2]
[361572840,1747619454332,-866.21,0.00013808,2]
[361572841,1747619454342,-216.73709947,0.00013808,2]
[361572842,1747619454352,-400.0,0.00013808,2]
[361572843,1747619454362,-400.0,0.00013808,2]
[361572844,1747619454371,-151.0,0.00013808,2]
[361572845,1747619454381,-256.812264,0.00013808,2]
[361572846,1747619454391,-1828.42,0.00013808,2]
[361572847,1747619454401,-256.812264,0.00013808,2]
[361572848,1747619454410,-429.96665595,0.00013808,2]
[361572849,1747619454420,-400.0,0.00013808,2]
[361572850,1747619454429,-1211.06,0.00013808,2]
[361572851,1747619454438,-400.0,0.00013808,2]
[361572852,1747619454447,-1372.19,0.00013808,2]
[361572853,1747619454456,-212.648611,0.00013808,2]
[361572854,1747619454466,-212.648611,0.00013808,2]
[361572855,1747619454475,-400.0,0.00013808,2]
[361572856,1747619454484,-400.0,0.00013808,2]
[361572857,1747619454494,-624.89,0.00013808,2]
[361572858,1747619454507,-579.31,0.00013808,2]
[361572859,1747619454517,-400.0,0.00013808,2]
[361572860,1747619454526,-401.09455796,0.00013808,2]
[361572861,1747619454536,-212.648611,0.00013808,2]
[361572862,1747619454545,-212.648611,0.00013808,2]
[361572863,1747619454554,-400.0,0.00013808,2]
[361572864,1747619454564,-400.0,0.00013808,2]
[361572865,1747619454573,-400.0,0.00013808,2]
[361572866,1747619454582,-400.0,0.00013808,2]
[361572867,1747619454592,-676.3,0.00013808,2]
[361572868,1747619454601,-566.22,0.00013808,2]
[361572869,1747619454611,-893.71,0.00013808,2]
[361572870,1747619454622,-400.0,0.00013808,2]
[361572871,1747619454633,-304.569069,0.00013808,2]
[361572872,1747619454643,-617.18,0.00013808,2]
[361572873,1747619454654,-304.569069,0.00013808,2]
[361572874,1747619454663,-1123.84,0.00013808,2]
[361572875,1747619454672,-385.014355,0.00013808,2]
[361572876,1747619454681,-400.0,0.00013808,2]
[361572877,1747619454690,-385.014355,0.00013808,2]
[361572878,1747619454700,-640.78,0.00013808,2]
[361572879,1747619454709,-304.569069,0.00013808,2]
[361572880,1747619454718,-304.569069,0.00013808,2]
[361572881,1747619454729,-400.0,0.00013808,2]
[361572882,1747619454739,-400.0,0.00013808,2]
[361572883,1747619454753,-385.014355,0.00013808,2]
[361572884,1747619454762,-385.014355,0.00013808,2]
[361572885,1747619454775,-1475.59,0.00013808,2]
[361572886,1747619454788,-400.0,0.00013808,2]
[361572887,1747619454797,-750.54,0.00013808,2]
[361572888,1747619454810,-832.78,0.00013808,2]
[361572889,1747619454820,-400.0,0.00013808,2]
[361572890,1747619454829,-540.36,0.00013808,2]
[361572891,1747619454839,-400.0,0.00013808,2]
[361572892,1747619454849,-568.02,0.00013808,2]
[361572893,1747619454859,-400.0,0.00013808,2]
[361572894,1747619454868,-529.1,0.00013808,2]
[361572895,1747619454877,-400.0,0.00013808,2]
[361572896,1747619454888,-403.93254098,0.00013808,2]
[361572897,1747619454901,-400.0,0.00013808,2]
[361572898,1747619454910,-518.81,0.00013808,2]
[361572899,1747619454919,-400.0,0.00013808,2]
[361572900,1747619454929,-400.0,0.00013808,2]
[361572901,1747619454938,-400.0,0.00013808,2]
[361572902,1747619454947,-888.13,0.00013808,2]
[361572903,1747619454957,-151.212996,0.00013808,2]
[361572904,1747619454966,-501.71005494,0.00013808,2]
[361572905,1747619454975,-400.0,0.00013808,2]
[361572906,1747619454986,-1052.06,0.00013808,2]
[361572907,1747619454996,-151.509849,0.00013808,2]
[361572908,1747619455007,-534.41,0.00013808,2]
[361572909,1747619455017,-400.0,0.00013808,2]
[361572910,1747619455027,-677.97,0.00013808,2]
[361572911,1747619455037,-586.41,0.00013808,2]
[361572912,1747619455050,-400.0,0.00013808,2]
[361572913,1747619455059,-431.0,0.00013808,2]
[361572914,1747619455068,-720.1,0.00013808,2]
[361572915,1747619455077,-151.8529176,0.00013808,2]
[361572916,1747619456091,-431.68,0.00013698,2]
[361572917,1747619456101,-177.10929597,0.00013698,2]
[361572918,1747619456135,-222.89070403,0.00013698,2]
[361572919,1747619456143,-400.0,0.00013698,2]
[361572920,1747619456153,-400.0,0.00013698,2]
[361572921,1747619456163,-400.0,0.00013698,2]
[361572922,1747619456172,-426.1370824,0.00013808,2]
[361572923,1747619456181,-400.0,0.00013808,2]
[361572924,1747619456190,-400.0,0.00013808,2]
[361572925,1747619456201,-433.55,0.00013808,2]
[361572926,1747619456210,-400.0,0.00013808,2]
[361572927,1747619456219,-151.0,0.00013808,2]
[361572928,1747619456228,-154.653291,0.00013808,2]
[361572929,1747619456238,-400.0,0.00013808,2]
[361572930,1747619456247,-836.31,0.00013808,2]
[361572931,1747619456255,-438.86,0.00013808,2]
[361572932,1747619456264,-164.39709629,0.00013808,2]
[361572933,1747619456275,-235.60290371,0.00013808,2]
[361572934,1747619456285,-528.9,0.00013808,2]
[361572935,1747619456294,-691.36,0.00013808,2]
[361572936,1747619456303,-403.28142654,0.00013808,2]
[361572937,1747619456312,-400.0,0.00013808,2]
[361572938,1747619456321,-151.0,0.00013808,2]
[361572939,1747619456331,-151.0,0.00013808,2]
[361572940,1747619456339,-400.0,0.00013808,2]
[361572941,1747619456349,-406.72674275,0.00013808,2]
[361572942,1747619456358,-551.51,0.00013808,2]
[361572943,1747619456367,-443.67,0.00013808,2]
[361572944,1747619456376,-96.88630099,0.00013808,2]
[361572945,1747619456387,-836.17369901,0.00013808,2]
[361572946,1747619456396,-336.62606252,0.00013808,2]
[361572947,1747619456431,-1071.13393748,0.00013808,2]
[361572948,1747619456440,-406.35937287,0.00013808,2]
[361572949,1747619456450,-500.17,0.00013808,2]
[361572950,1747619456459,-165.505588,0.00013808,2]
[361572951,1747619456468,-400.0,0.00013808,2]
[361572952,1747619456477,-165.505588,0.00013808,2]
[361572953,1747619456487,-151.0,0.00013808,2]
[361572954,1747619456495,-60.59551365,0.00013808,2]
[361572955,1747619456508,-90.40448635,0.00013808,2]
[361572956,1747619456518,-165.505588,0.00013808,2]
[361572957,1747619456527,-165.505588,0.00013808,2]
[361572958,1747619456537,-400.0,0.00013808,2]
[361572959,1747619456546,-303.88966308,0.00013808,2]
[361572960,1747619456558,-103.78755498,0.00013808,2]
[361572961,1747619456568,-429.21,0.00013808,2]
[361572962,1747619456577,-151.0,0.00013808,2]
[361572963,1747619456586,-66.11655079,0.00013808,2]
[361572964,1747619456598,-181.01628721,0.00013808,2]
[361572965,1747619456607,-743.21,0.00013808,2]
[361572966,1747619456616,-506.81,0.00013808,2]
[361572967,1747619456625,-479.41,0.00013808,2]
[361572968,1747619456635,-400.0,0.00013808,2]
[361572969,1747619456644,-718.43,0.00013808,2]
[361572970,1747619456653,-628.11,0.00013808,2]
[361572971,1747619456662,-400.0,0.00013808,2]
[361572972,1747619456671,-400.0,0.00013808,2]
[361572973,1747619456681,-719.2,0.00013808,2]
[361572974,1747619456690,-151.0,0.00013808,2]
[361572975,1747619456699,-151.0,0.00013808,2]
[361572976,1747619456708,-400.0,0.00013808,2]
[361572977,1747619456717,-1291.11,0.00013808,2]
[361572978,1747619456726,-651.33,0.00013808,2]
[361572979,1747619456735,-400.0,0.00013808,2]
[361572980,1747619456745,-757.14,0.00013808,2]
[361572981,1747619456755,-637.62,0.00013808,2]
[361572982,1747619456764,-723.9460915,0.00013808,2]
[361572983,1747619456776,-479.1339085,0.00013808,2]
[361572984,1747619456786,-413.11289634,0.00013808,2]
[361572985,1747619456796,-151.0,0.00013808,2]
[361572986,1747619456807,-151.0,0.00013808,2]
[361572987,1747619456817,-151.0,0.00013808,2]
[361572988,1747619456826,-297.552712,0.00013808,2]
[361572989,1747619456836,-547.88,0.00013808,2]
[361572990,1747619456852,-493.27,0.00013808,2]
[361572991,1747619456861,-400.0,0.00013808,2]
[361572992,1747619456871,-94.54630529,0.00013808,2]
[361572993,1747619456884,-250.88702337,0.00013808,2]
[361572994,1747619456893,-151.0,0.00013808,2]
[361572995,1747619456902,-2141.24,0.00013808,2]
[361572996,1747619456911,-400.0,0.00013808,2]
[361572997,1747619456922,-400.0,0.00013808,2]
[361572998,1747619456931,-451.84,0.00013808,2]
[361572999,1747619456941,-400.0,0.00013808,2]
[361573000,1747619456950,-280.12841663,0.00013808,2]
[361573001,1747619898905,500.0,0.00027397,120]
[361573002,1747619906567,499.99,0.00027397,120]
[361573003,1747620225324,500.0,0.00027397,120]
[361573004,1747620225574,500.0,0.00027397,120]
[361573005,1747620225827,500.0,0.00027397,120]
[361573006,1747620226086,500.0,0.00027397,120]
[361573007,1747620226307,500.0,0.00027397,120]
[361573008,1747620226553,500.0,0.00027397,120]
[361573009,1747620226806,500.0,0.00027397,120]
[361573010,1747620227058,500.0,0.00027397,120]
[361573011,1747620227686,500.0,0.00027397,120]
[361573012,1747620227930,567.14056928,0.00027397,120]
[361573013,1747620427147,-674.92084813,0.00012581,2]
[361573014,1747620451085,-1818.84915187,0.00012581,2]
[361573015,1747620451105,-10.38286709,0.00012659,2]
[361573018,1747620553943,1101.56080969,0.00012519,2]
[361573020,1747620571547,410.75,0.00010641,2]
[361573025,1747620631540,-506.57,0.00012518,2]
[361573026,1747620631595,-693.43,0.00012518,2]
[361573027,1747620631604,-4098.93919031,0.00012519,2]
[361573028,1747620631614,-192.43,0.00012519,2]
[361573029,1747620631623,-182.6,0.00012559,2]
[361573030,1747620631632,-343.77713291,0.00012659,2]
[361573031,1747620631641,-200.0,0.00012716,2]
[361573032,1747620631650,-313.03,0.00012772,2]
[361573033,1747620631660,-200.0,0.00012791,2]
[361573034,1747620631669,-1000.0,0.00012794,2]
[361573035,1747620631678,-448.25,0.00012855,2]
[361573036,1747620631687,-1741.97,0.00012889,2]
[361573037,1747620631696,-150.99,0.00012893,2]
[361573038,1747620631706,-629.42,0.00012893,2]
[361573039,1747620631715,-299.99,0.00012893,2]
[361573040,1747620631724,-410.75,0.00012905,2]
[361573041,1747620631734,-150.0,0.00012999,2]
[361573042,1747620631743,-1192.85,0.00013,2]
[361573043,1747620631753,-1192.85,0.00013,2]
[361573044,1747620631762,-1192.85,0.00013,2]
[361573045,1747620631772,-268.65595885,0.00013,2]
[361573046,1747620631783,-924.19404115,0.00013,2]
[361573047,1747620631793,-1192.85,0.00013,2]
[361573048,1747620631803,-2128.4820504,0.00013,2]
[361573049,1747620631835,-1610.4344389,0.00013,2]
[361573050,1747620631847,-502.55752232,0.00013,2]
[361573051,1747620631858,-1933.358111,0.00013,2]
[361573052,1747620631882,-3825.15787738,0.00013,2]
[361573053,1747620631891,-202.0,0.00013078,2]
[361573054,1747620631900,-207.4,0.00013116,2]
[361573055,1747620631909,-213.51095155,0.00013527,2]
[361573056,1747620631938,-544.68374451,0.00013527,2]
[361573057,1747620631947,-452.87,0.00013534,2]
[361573058,1747620631956,-756.93206742,0.00013534,2]
[361573059,1747620631966,-1107.05793258,0.00013534,2]
[361573061,1747620631975,-247.90304485,0.00013534,2]
[361573064,1747620632001,-105.14695515,0.00013534,2]
[361573066,1747620632010,-150.3,0.00013534,2]
[361573068,1747620632019,-54.72344527,0.00013598,2]
[361573107,1747620637513,-1232.17719971,0.00013598,2]
[361573108,1747620637523,-169.56742908,0.00013598,2]
[361573109,1747620637532,-5714.938,0.00013598,2]
[361573110,1747620637541,-500.0,0.00013598,2]
[361573111,1747620637550,-1000.0,0.00013598,2]
[361573112,1747620637559,-1286.9006449,0.00013632,2]
[361573113,1747620637568,-150.3,0.00013644,2]
[361573114,1747620637578,-150.3,0.00013644,2]
[361573115,1747620637587,-150.3,0.00013644,2]
[361573116,1747620637597,-169.56742905,0.00013658,2]
[361573117,1747620637606,-1139.693,0.00013665,2]
[361573118,1747620637615,-1286.9006449,0.00013665,2]
[361573119,1747620637624,-326.88043176,0.00013669,2]
[361573120,1747620637633,-286.35636415,0.00013669,2]
[361573121,1747620637643,-30682.08782131,0.0001367,2]
[361573122,1747620637652,-663.88337826,0.0001367,2]
[361573123,1747620637661,-296.92114305,0.00013673,2]
[361573124,1747620637671,-261.01046392,0.00013698,2]
[361573125,1747620637681,-402.09439323,0.00013698,2]
[361573126,1747620637690,-376.61740032,0.00013698,2]
[361573127,1747620637699,-351.12505244,0.00013698,2]
[361573128,1747620637712,-48.87494756,0.00013698,2]
[361573129,1747620637722,-401.58726375,0.00013698,2]
[361573130,1747620637731,-400.0,0.00013698,2]
[361573131,1747620637741,-258.20419662,0.00013698,2]
[361573132,1747620637751,-504.75023272,0.00013698,2]
[361573133,1747620637760,-1081.07017531,0.00013698,2]
[361573145,1747620638349,-2101.2,0.00013698,2]
[361573146,1747620638361,-1192.26446169,0.00013698,2]
[361573147,1747620638371,-401.7282,0.00013698,2]
[361573148,1747620638380,-1244.547058,0.00013698,2]
[361573149,1747620638389,-500.0,0.00013698,2]
[361573150,1747620638399,-390.3483187,0.00013698,2]
[361573151,1747620638429,-9.6516813,0.00013698,2]
[361573152,1747620638438,-403.11683628,0.00013698,2]
[361573153,1747620638447,-160.812682,0.00013698,2]
[361573154,1747620638457,-182.57056,0.00013698,2]
[361573155,1747620638466,-400.0,0.00013698,2]
[361573156,1747620638475,-287.398139,0.00013698,2]
[361573157,1747620638484,-400.0,0.00013698,2]
[361573158,1747620638494,-8.54191644,0.00013698,2]
[361573159,1747620638506,-211.37191639,0.00013698,2]
[361573160,1747620638515,-400.0,0.00013698,2]
[361573161,1747620638525,-126.55807861,0.00013698,2]
[361573162,1747620638537,-273.44192139,0.00013698,2]
[361573163,1747620638547,-216.04382861,0.00013698,2]
[361573195,1747620639812,-183.95617139,0.00013698,2]
[361573196,1747620639822,-400.0,0.00013698,2]
[361573197,1747620639832,-400.0,0.00013698,2]
[361573198,1747620639842,-351.49686852,0.00013698,2]
[361573199,1747620639852,-400.0,0.00013698,2]
[361573200,1747620639861,-400.0,0.00013698,2]
[361573201,1747620639871,-400.0,0.00013698,2]
[361573202,1747620639881,-378.13238165,0.00013698,2]
[361573203,1747620639890,-400.0,0.00013698,2]
[361573204,1747620639900,-400.0,0.00013698,2]
[361573205,1747620639909,-400.0,0.00013698,2]
[361573206,1747620639918,-404.3217397,0.00013698,2]
[361573207,1747620639928,-400.0,0.00013698,2]
[361573208,1747620639937,-400.0,0.00013698,2]
[361573209,1747620639946,-431.35777546,0.00013698,2]
[361573210,1747620639955,-400.0,0.00013698,2]
[361573211,1747620639965,-587.38,0.00013698,2]
[361573212,1747620639974,-400.0,0.00013698,2]
[361573213,1747620639983,-537.54,0.00013698,2]
[361573214,1747620639993,-400.0,0.00013698,2]
[361573215,1747620640002,-474.58,0.00013698,2]
[361573216,1747620640011,-400.0,0.00013698,2]
[361573217,1747620640021,-400.0,0.00013698,2]
[361573218,1747620640031,-400.0,0.00013698,2]
[361573219,1747620640039,-400.0,0.00013698,2]
[361573220,1747620640049,-400.0,0.00013698,2]
[361573221,1747620640058,-621.48,0.00013698,2]
[361573222,1747620640068,-400.0,0.00013698,2]
[361573223,1747620640077,-400.0,0.00013698,2]
[361573224,1747620640086,-400.84134347,0.00013698,2]
[361573225,1747620640096,-400.0,0.00013698,2]
[361573226,1747620640105,-408.33202062,0.00013698,2]
[361573227,1747620640114,-400.0,0.00013698,2]
[361573228,1747620640124,-489.72,0.00013698,2]
[361573229,1747620640133,-400.0,0.00013698,2]
[361573230,1747620640142,-400.0,0.00013698,2]
[361573231,1747620640152,-406.7,0.00013698,2]
[361573232,1747620640161,-400.49918396,0.00013698,2]
[361573233,1747620640171,-400.0,0.00013698,2]
[361573234,1747620640180,-400.0,0.00013698,2]
[361573235,1747620640189,-694.04,0.00013698,2]
[361573236,1747620640200,-400.0,0.00013698,2]
[361573239,1747620640504,-401.7618806,0.00013698,2]
[361573240,1747620640518,-401.44283648,0.00013698,2]
[361573241,1747620640528,-400.0,0.00013698,2]
[361573242,1747620640538,-400.0,0.00013698,2]
[361573243,1747620640548,-400.0,0.00013698,2]
[361573244,1747620640557,-400.0,0.00013698,2]
[361573245,1747620640568,-400.0,0.00013698,2]
[361573246,1747620640577,-400.0,0.00013698,2]
[361573247,1747620640587,-505.27,0.00013698,2]
[361573248,1747620640597,-400.0,0.00013698,2]
[361573249,1747620640607,-588.82,0.00013698,2]
[361573250,1747620640616,-400.0,0.00013698,2]
[361573251,1747620640626,-386.63406203,0.00013698,2]
[361573252,1747620640635,-400.0,0.00013698,2]
[361573253,1747620640646,-401.00615867,0.00013698,2]
[361573254,1747620640655,-400.0,0.00013698,2]
[361573255,1747620640665,-400.0,0.00013698,2]
[361573256,1747620640675,-557.98,0.00013698,2]
[361573257,1747620640685,-400.0,0.00013698,2]
[361573258,1747620640694,-728.88,0.00013698,2]
[361573259,1747620640704,-161.708323,0.00013698,2]
[361573260,1747620640714,-400.0,0.00013698,2]
[361573261,1747620640723,-313.86588814,0.00013698,2]
[361573262,1747620640733,-414.99282797,0.00013698,2]
[361573263,1747620640742,-400.0,0.00013698,2]
[361573264,1747620640751,-400.0,0.00013698,2]
[361573265,1747620640762,-400.0,0.00013698,2]
[361573266,1747620640771,-403.24402032,0.00013698,2]
[361573267,1747620640781,-400.0,0.00013698,2]
[361573268,1747620640790,-401.33772444,0.00013698,2]
[361573269,1747620640800,-404.40186294,0.00013698,2]
[361573270,1747620640810,-400.0,0.00013698,2]
[361573271,1747620640819,-400.0,0.00013698,2]
[361573272,1747620640828,-400.0,0.00013698,2]
[361573273,1747620640837,-400.0,0.00013698,2]
[361573274,1747620640847,-1076.84,0.00013698,2]
[361573275,1747620640856,-401.3083306,0.00013698,2]
[361573276,1747620640866,-400.0,0.00013698,2]
[361573277,1747620640875,-400.0,0.00013698,2]
[361573278,1747620640884,-403.51137776,0.00013698,2]
[361573279,1747620640893,-400.0,0.00013698,2]
[361573280,1747620640902,-1300.99,0.00013698,2]
[361573281,1747620640911,-683.17,0.00013698,2]
[361573282,1747620640920,-400.0,0.00013698,2]
[361573283,1747620640929,-400.0,0.00013698,2]
[361573284,1747620640938,-397.47682848,0.00013698,2]
[361573285,1747620640947,-1005.32,0.00013698,2]
[361573286,1747620640956,-403.89537343,0.00013698,2]
[361573287,1747620640966,-434.24,0.00013698,2]
[361573288,1747620640975,-400.0,0.00013698,2]
[361573289,1747620640983,-400.0,0.00013698,2]
[361573290,1747620640992,-400.0,0.00013698,2]
[361573291,1747620641001,-402.08534832,0.00013698,2]
[361573292,1747620641010,-574.22,0.00013698,2]
[361573293,1747620641019,-400.0,0.00013698,2]
[361573294,1747620641027,-509.32658307,0.00013698,2]
[361573295,1747620641035,-400.0,0.00013698,2]
[361573296,1747620641045,-400.0,0.00013698,2]
[361573297,1747620641054,-400.0,0.00013698,2]
[361573298,1747620641064,-408.79779158,0.00013698,2]
[361573299,1747620641074,-518.01579566,0.00013698,2]
[361573300,1747620641083,-400.0,0.00013698,2]
[361573301,1747620641092,-400.0,0.00013698,2]
[361573302,1747620641102,-499.71,0.00013698,2]
[361573303,1747620641111,-881.52,0.00013698,2]
[361573304,1747620641120,-400.0,0.00013698,2]
[361573305,1747620641129,-957.79,0.00013698,2]
[361573306,1747620641139,-443.72,0.00013698,2]
[361573307,1747620641148,-400.0,0.00013698,2]
[361573308,1747620641157,-400.0,0.00013698,2]
[361573309,1747620641166,-400.0,0.00013698,2]
[361573310,1747620641175,-666.53,0.00013698,2]
[361573311,1747620641185,-400.0,0.00013698,2]
[361573312,1747620641194,-409.34902495,0.00013698,2]
[361573313,1747620641206,-401.42482646,0.00013698,2]
[361573314,1747620641215,-400.0,0.00013698,2]
[361573315,1747620641227,-407.57883272,0.00013698,2]
[361573316,1747620641246,-536.01,0.00013698,2]
[361573317,1747620641266,-400.0,0.00013698,2]
[361573318,1747620641282,-400.0,0.00013698,2]
[361573319,1747620641291,-400.0,0.00013698,2]
[361573320,1747620641301,-401.41309724,0.00013698,2]
[361573321,1747620641310,-400.0,0.00013698,2]
[361573322,1747620641319,-750.08,0.00013698,2]
[361573323,1747620641328,-400.0,0.00013698,2]
[361573324,1747620641337,-505.63929586,0.00013698,2]
[361573325,1747620641347,-400.0,0.00013698,2]
[361573326,1747620641355,-400.0,0.00013698,2]
[361573327,1747620641366,-403.43667122,0.00013698,2]
[361573328,1747620641375,-400.0,0.00013698,2]
[361573329,1747620641384,-400.0,0.00013698,2]
[361573330,1747620641393,-650.95,0.00013698,2]
[361573331,1747620641402,-1389.08,0.00013698,2]
[361573332,1747620641411,-400.0,0.00013698,2]
[361573333,1747620641419,-909.3,0.00013698,2]
[361573334,1747620641428,-525.59,0.00013698,2]
[361573335,1747620641438,-400.0,0.00013698,2]
[361573336,1747620641447,-400.0,0.00013698,2]
[361573337,1747620641456,-400.0,0.00013698,2]
[361573338,1747620641466,-400.0,0.00013698,2]
[361573339,1747620641476,-402.6741737,0.00013698,2]
[361573340,1747620641486,-410.13,0.00013698,2]
[361573341,1747620641495,-400.0,0.00013698,2]
[361573342,1747620641504,-438.28,0.00013698,2]
[361573343,1747620641513,-671.58,0.00013698,2]
[361573344,1747620641523,-400.0,0.00013698,2]
[361573345,1747620641532,-298.16665894,0.00013698,2]
[361573346,1747620641541,-400.0,0.00013698,2]
[361573347,1747620641550,-400.0,0.00013698,2]
[361573348,1747620641559,-722.34,0.00013698,2]